bitfinex/quotes_ETHUSD_20241024
["timestamp","ask_amount","ask_price","bid_price","bid_amount"]
[1729766156769,0.9152,2531.0,2530.6,0.18713668]
[1729766156959,0.9621841,2530.9,2530.6,0.18713668]
[1729766157298,0.9621841,2530.8,2530.6,4.13868668]
[1729766157461,0.9621841,2530.7,2530.6,4.13868668]
[1729766157958,0.37007081,2530.7,2530.6,4.13868668]
[1729766158463,0.37007081,2530.7,2530.6,0.18713668]
[1729766159378,8.9374541,2530.7,2530.6,0.18713668]
[1729766159573,0.9038,2530.5,2529.6,3.95311]
[1729766159900,1.27392529,2530.4,2529.7,0.18394814]
[1729766160055,5.81833576,2530.3,2529.7,0.18394814]
[1729766160254,0.96232576,2530.2,2529.7,0.18394814]
[1729766160459,4.85601,2530.3,2529.5,3.95334]
[1729766160460,0.96232576,2530.1,2529.5,3.95334]
[1729766160673,0.96232576,2530.0,2529.8,0.18385607]
[1729766160879,0.96232576,2529.9,2529.5,3.95326]
[1729766161079,0.96232576,2529.8,2529.5,3.95326]
[1729766161293,4.85601,2530.3,2529.4,3.95349]
[1729766161294,0.37012529,2529.7,2529.4,3.95349]
[1729766161500,0.59155897,2530.2,2529.4,3.95349]
[1729766161707,1.50604644,2530.1,2529.4,3.95349]
[1729766161907,0.9038,2530.0,2529.3,0.9421]
[1729766162205,4.91412134,2529.9,2529.3,0.9321]
[1729766162365,8.86717134,2529.8,2529.3,0.9321]
[1729766162566,4.32277128,2529.7,2529.4,0.1842244]
[1729766162812,1.19729941,2529.6,2529.4,0.1842244]
[1729766162979,0.82756813,2529.6,2529.4,0.1842244]
[1729766163285,4.85648,2530.0,2529.4,0.1842244]
[1729766163488,0.36915723,2529.9,2529.4,0.1842244]
[1729766163693,0.36915723,2529.8,2529.4,3.10547564]
[1729766163877,4.85639,2530.0,2529.4,0.1842244]
[1729766164082,0.36913587,2529.9,2529.4,0.1842244]
[1729766164306,0.52255259,2529.9,2529.4,0.1842244]
[1729766164711,4.47527259,2529.9,2529.4,0.1842244]
[1729766164879,0.52255259,2529.9,2529.4,0.1842244]
[1729766165091,0.9038,2530.0,2529.4,0.1842244]
[1729766166102,0.9013,2530.2,2529.4,4.1376244]
[1729766166317,0.36861834,2530.1,2529.5,3.95333]
[1729766166474,0.9013,2530.2,2529.5,3.95333]
[1729766166674,0.36860293,2530.1,2529.6,0.18476909]
[1729766167008,0.36860116,2530.0,2529.6,0.18476909]
[1729766167177,0.91743029,2530.1,2529.6,0.18476909]
[1729766167375,0.91743029,2530.1,2529.4,3.9535]
[1729766167576,0.91743029,2530.1,2529.5,0.18486117]
[1729766168821,0.91743029,2530.1,2529.6,0.8685]
[1729766169171,0.91743029,2530.1,2529.7,0.18467701]
[1729766170218,0.57710003,2530.0,2529.7,0.18467701]
[1729766175604,0.91743029,2530.1,2529.7,0.18467701]
[1729766182706,3.95264,2530.0,2529.7,0.18467701]
[1729766182907,4.86985029,2530.1,2529.7,0.18467701]
[1729766182908,0.8811,2529.8,2529.7,0.18467701]
[1729766183131,4.83398,2529.8,2529.7,0.18467701]
[1729766183334,4.83398,2529.8,2529.3,0.8697]
[1729766183335,3.95303,2529.7,2529.3,0.8697]
[1729766183527,4.831708,2529.7,2529.3,0.8697]
[1729766183941,4.831708,2529.7,2529.2,3.0]
[1729766183942,3.95322,2529.6,2529.1,0.8511]
[1729766184164,3.95322,2529.6,2529.1,0.8611]
[1729766184439,0.8784928,2529.5,2529.1,0.8511]
[1729766184838,0.8784928,2529.5,2529.1,4.80504]
[1729766185044,0.8784928,2529.5,2529.1,0.8511]
[1729766186709,4.86578,2529.4,2528.8,0.8511]
[1729766186909,0.96976428,2529.3,2528.8,0.8511]
[1729766187254,0.96976428,2529.3,2528.8,4.80551]
[1729766188648,0.96976428,2529.3,2528.8,0.8511]
[1729766188941,4.92350428,2529.3,2528.8,0.8511]
[1729766189148,1.83026428,2529.3,2528.8,4.80548]
[1729766189449,0.8605,2529.3,2528.9,0.18247942]
[1729766190636,4.81417,2529.3,2528.9,0.18247942]
[1729766191350,4.81417,2529.3,2528.6,4.85174]
[1729766191517,4.81417,2529.3,2529.0,0.18238729]
[1729766191846,4.81417,2529.3,2528.6,4.85174]
[1729766191847,3.95389,2529.2,2529.1,0.18229517]
[1729766192052,5.295807,2529.2,2529.1,0.18229517]
[1729766192263,0.8605,2528.9,2528.3,3.95519]
[1729766192611,0.8605,2528.9,2528.4,0.18294017]
[1729766193047,0.8605,2528.9,2528.4,0.19294017]
[1729766193254,0.481478,2528.8,2528.4,1.13094017]
[1729766193551,0.481417,2529.2,2528.7,3.9546]
[1729766193552,0.9232,2529.1,2528.7,3.9546]
[1729766193940,0.9232,2529.1,2528.8,0.18298236]
[1729766195169,1.54207408,2529.1,2528.8,0.18298236]
[1729766197252,5.49604408,2529.1,2528.8,0.18298236]
[1729766197465,0.59774611,2529.0,2528.5,3.95481]
[1729766197773,0.59774611,2529.0,2528.5,7.9096]
[1729766197977,0.59774611,2529.0,2528.6,0.18375036]
[1729766199607,0.59774611,2529.0,2528.6,4.13839036]
[1729766199758,1.54207408,2529.1,2528.6,4.13839036]
[1729766204299,0.36883102,2529.0,2528.6,4.13839036]
[1729766204460,1.54207408,2529.1,2528.6,4.13839036]
[1729766204660,0.36883063,2529.0,2528.6,4.13839036]
[1729766204891,1.54207408,2529.1,2528.6,4.13839036]
[1729766205193,0.59773211,2529.0,2528.6,4.13839036]
[1729766207869,0.59773211,2529.0,2528.7,4.84087]
[1729766208070,0.61887408,2529.1,2528.7,0.8863]
[1729766208277,0.61887408,2529.1,2528.8,0.18356607]
[1729766211500,1.30137194,2529.0,2528.8,0.18356607]
[1729766211702,0.9324,2529.0,2528.8,0.18356607]
[1729766211874,0.9324,2529.0,2528.5,4.8893]
[1729766212076,0.68164727,2528.9,2528.5,4.8893]
[1729766212474,0.68164727,2528.9,2528.5,0.9344]
[1729766212675,0.9324,2529.0,2528.5,0.9344]
[1729766212676,0.9324,2529.0,2528.6,3.95475]
[1729766214169,0.9324,2529.0,2528.6,7.9095]
[1729766214673,0.9324,2529.0,2528.6,3.95475]
[1729766216601,0.9324,2529.0,2528.6,7.9094]
[1729766218105,0.9324,2529.0,2528.6,3.95465]
[1729766218310,0.9324,2529.0,2528.6,7.90929]
[1729766218311,1.61403127,2529.0,2528.6,7.90929]
[1729766218480,1.61403127,2529.0,2528.6,3.95464]
[1729766218688,1.61403127,2529.0,2528.7,3.95458]
[1729766219368,1.61403127,2529.0,2528.8,0.18350658]
[1729766219572,0.36918943,2528.9,2528.8,0.18350658]
[1729766220410,0.61887408,2529.1,2529.0,3.95413]
[1729766220588,0.8807,2529.7,2529.2,3.95381]
[1729766220783,0.95982201,2529.6,2529.3,0.18317034]
[1729766221006,0.98793229,2529.5,2529.2,3.95371]
[1729766221227,0.36916231,2529.4,2529.3,0.18317034]
[1729766221442,0.36920707,2529.4,2529.3,0.18317034]
[1729766221591,0.36920707,2529.4,2529.2,3.95371]
[1729766221932,0.93675407,2529.5,2529.3,0.18317034]
[1729766222230,0.36920925,2529.4,2529.2,7.90744]
[1729766222389,0.93675407,2529.5,2529.4,0.18307824]
[1729766222714,1.89691025,2529.5,2529.0,3.95403]
[1729766222911,0.9291,2529.3,2529.0,3.95403]
[1729766223109,0.36929084,2529.2,2529.0,3.95403]
[1729766224321,0.36929084,2529.2,2528.9,0.887]
[1729766224795,0.9291,2529.3,2528.9,0.887]
[1729766225112,1.44890252,2529.2,2528.9,0.887]
[1729766225510,0.36947767,2529.1,2528.9,0.887]
[1729766226025,0.36947767,2529.1,2528.9,4.84126]
[1729766226831,0.36947767,2529.0,2528.9,4.84126]
[1729766227130,0.96139223,2529.2,2529.0,3.95412]
[1729766227316,0.36977794,2529.1,2529.0,3.95412]
[1729766228035,0.36977794,2529.1,2529.0,4.81902]
[1729766228592,0.9213,2529.7,2529.2,3.95372]
[1729766228796,1.44908624,2529.6,2529.2,3.95372]
[1729766229144,1.44908624,2529.6,2529.1,3.95397]
[1729766229145,0.96166624,2529.5,2529.1,3.95397]
[1729766229455,0.96166624,2529.4,2529.3,3.95365]
[1729766229809,0.36987164,2529.4,2529.3,3.95365]
[1729766230123,0.96166624,2529.4,2529.3,3.95365]
[1729766230442,0.36987164,2529.4,2529.3,3.95365]
[1729766231806,0.36987164,2529.4,2529.3,4.85805]
[1729766232339,0.96216541,2529.4,2529.3,4.85805]
[1729766232564,0.37006362,2529.4,2529.3,4.85805]
[1729766233246,0.37006362,2529.4,2529.3,4.86805]
[1729766234409,0.37006362,2529.4,2529.3,5.05109599]
[1729766235752,4.83171,2530.1,2529.3,1.09744599]
[1729766236049,1.3495035,2530.0,2529.5,3.95324]
[1729766236370,0.9615735,2529.9,2529.5,3.95324]
[1729766236570,0.9615735,2529.8,2529.6,0.18237508]
[1729766236764,0.9615735,2529.7,2529.6,0.18237508]
[1729766237060,0.36983596,2529.7,2529.6,0.18237508]
[1729766237278,1.8866735,2529.7,2529.6,0.18237508]
[1729766237430,2.86591185,2529.7,2529.2,3.95381]
[1729766237629,0.9615735,2529.6,2529.3,0.18262973]
[1729766237959,5.85739835,2529.7,2529.0,3.95403]
[1729766237960,4.9149235,2529.5,2529.0,3.95403]
[1729766238165,3.95335,2529.5,2529.4,0.18253764]
[1729766238332,3.95358,2529.4,2528.9,3.96419]
[1729766238532,5.03059919,2529.5,2529.4,0.18253764]
[1729766238746,5.99201403,2529.5,2529.0,3.95412]
[1729766238930,5.03059919,2529.5,2529.4,0.18253764]
[1729766239137,5.99201134,2529.5,2529.0,3.95412]
[1729766239338,1.56061328,2529.4,2529.0,3.95412]
[1729766239522,1.56061328,2529.4,2529.1,0.18281396]
[1729766239523,0.96141215,2529.3,2529.1,0.18281396]
[1729766240237,0.96141215,2529.2,2529.1,0.18281396]
[1729766240432,0.3697739,2529.2,2529.1,0.18281396]
[1729766240766,0.96141215,2529.3,2529.1,0.18281396]
[1729766240960,0.96141215,2529.2,2529.1,0.18281396]
[1729766241666,0.96141215,2529.4,2529.1,0.18281396]
[1729766241867,0.96141215,2529.3,2529.1,0.18281396]
[1729766242019,0.96141215,2529.2,2529.1,0.18281396]
[1729766242219,0.96141215,2529.4,2529.1,0.18281396]
[1729766242452,1.16527728,2529.3,2529.1,0.18281396]
[1729766242651,0.96141215,2529.2,2529.1,0.18281396]
[1729766243055,0.96152454,2529.2,2529.1,0.18281396]
[1729766243929,0.96152454,2529.2,2529.0,3.95412]
[1729766244128,0.96152454,2529.2,2529.1,0.18281396]
[1729766246433,0.96152454,2529.2,2529.1,4.13678396]
[1729766246743,0.20386513,2529.3,2529.1,4.13678396]
[1729766246943,0.96168057,2529.2,2529.1,4.13678396]
[1729766247343,0.96168057,2529.2,2529.1,0.18281396]
[1729766247582,1.16559514,2529.2,2529.1,0.18281396]
[1729766247757,1.16559514,2529.2,2529.1,4.13678396]
[1729766249326,0.96168057,2529.2,2529.1,4.13678396]
[1729766249970,0.96168057,2529.3,2529.1,4.13678396]
[1729766250280,0.8736,2529.4,2529.1,4.13678396]
[1729766250475,0.96189207,2529.2,2529.1,4.13678396]
[1729766250768,0.36995611,2529.2,2529.1,4.13678396]
[1729766252467,0.96188588,2529.2,2529.1,4.13678396]
[1729766252979,0.96188588,2529.2,2529.1,4.13678396]
[1729766253542,0.36995611,2529.2,2529.1,4.13678396]
[1729766253870,0.9016,2529.4,2529.1,4.13678396]
[1729766254182,0.96211323,2529.2,2529.1,4.13678396]
[1729766254475,1.924226,2529.2,2529.1,4.13678396]
[1729766256878,2.2068086,2529.2,2529.1,0.18281396]
[1729766257344,2.2068086,2529.2,2528.8,7.90862]
[1729766257345,2.2068086,2529.2,2528.8,3.95429]
[1729766257559,1.24469583,2529.2,2529.1,0.18288423]
[1729766257739,1.61483856,2529.2,2529.0,3.95411]
[1729766257934,1.24469583,2529.2,2529.1,0.18281397]
[1729766258174,2.20706558,2529.2,2529.1,0.18281397]
[1729766259782,1.24495235,2529.2,2529.1,0.18281397]
[1729766260636,1.24495235,2529.2,2528.9,3.95427]
[1729766260881,0.96236975,2529.1,2529.0,0.18290609]
[1729766261232,0.2825826,2529.2,2529.0,0.18290609]
[1729766261436,1.92555696,2529.1,2529.0,0.18290609]
[1729766265258,2.14637092,2529.1,2529.0,0.18290609]
[1729766265581,8.31686323,2529.1,2528.3,0.9185]
[1729766265772,1.31089231,2528.9,2528.5,3.95488]
[1729766265977,0.962776,2528.8,2528.4,3.95507]
[1729766266144,0.962776,2528.7,2528.4,3.95507]
[1729766266348,0.962776,2528.6,2528.4,3.95507]
[1729766266574,0.37029846,2528.6,2528.4,3.95507]
[1729766266778,0.962776,2528.5,2528.4,3.95507]
[1729766267189,0.37029846,2528.5,2528.4,3.95507]
[1729766268063,0.37029846,2528.7,2528.4,3.95507]
[1729766268258,0.962776,2528.6,2528.4,3.95507]
[1729766268594,0.4917076,2528.7,2528.4,3.95499]
[1729766268789,0.9623976,2528.5,2528.4,3.95499]
[1729766269092,0.9623976,2528.5,2528.4,5.27588231]
[1729766269268,0.37015292,2528.5,2528.4,5.27588231]
[1729766269486,0.37015292,2528.5,2528.4,6.21588231]
[1729766270801,0.37015292,2528.5,2528.4,4.90499]
[1729766271202,0.37015292,2528.5,2528.4,6.21588231]
[1729766271914,0.37015292,2528.5,2528.4,4.90499]
[1729766272115,0.37015292,2528.5,2528.4,6.21588231]
[1729766272422,0.36990999,2528.5,2528.4,6.21588231]
[1729766273199,0.36990999,2528.5,2528.4,5.08278459]
[1729766274885,0.36990999,2528.5,2528.4,6.3936769]
[1729766275297,0.36990999,2528.5,2528.4,5.08278459]
[1729766275891,0.8966,2528.7,2528.4,4.13278459]
[1729766276084,0.3697902,2528.5,2528.4,4.13278459]
[1729766279603,0.8966,2528.7,2528.4,4.13278459]
[1729766279807,0.36969513,2528.6,2528.4,4.13278459]
[1729766280278,0.8966,2528.7,2528.4,4.13278459]
[1729766280472,0.36973248,2528.6,2528.4,4.13278459]
[1729766280679,0.36973248,2528.5,2528.4,4.13278459]
[1729766280901,0.36973248,2528.5,2528.4,5.4536769]
[1729766281113,0.36973248,2528.5,2528.4,4.14278459]
[1729766293060,1.48914363,2528.9,2528.5,3.9548]
[1729766293226,1.63707196,2528.8,2528.6,3.95472]
[1729766293427,0.96165537,2528.7,2528.6,0.17759403]
[1729766294349,0.96165537,2528.7,2528.4,3.955]
[1729766294629,0.61892938,2528.7,2528.6,0.17759403]
[1729766294830,2.32168584,2528.7,2528.5,0.17768619]
[1729766295169,1.35989321,2528.7,2528.6,0.17759403]
[1729766295324,0.96182328,2528.7,2528.6,6.37633634]
[1729766295526,8.39,2529.8,2529.0,3.95403]
[1729766295527,4.84916,2529.5,2529.0,3.95403]
[1729766295835,3.95374,2529.3,2528.9,3.95428]
[1729766296040,0.96167269,2529.2,2529.1,0.17738207]
[1729766296224,0.96167269,2529.2,2529.0,0.17747419]
[1729766296225,4.80627,2529.1,2529.0,0.17747419]
[1729766296422,3.95413,2529.0,2528.4,4.87864]
[1729766296656,0.96167269,2528.9,2528.4,4.86864]
[1729766296858,5.26502231,2529.0,2528.4,3.95504]
[1729766296859,7.079375,2528.8,2528.4,3.95504]
[1729766297062,0.96167269,2528.7,2528.4,3.95498]
[1729766297249,0.96167269,2528.6,2528.5,3.9548]
[1729766297456,0.96167269,2528.6,2528.5,5.26569231]
[1729766297628,0.8968,2529.0,2528.6,3.95464]
[1729766297833,0.96197155,2528.9,2528.6,3.95464]
[1729766298131,0.96197155,2528.8,2528.6,3.95475]
[1729766298327,0.96197155,2528.7,2528.6,3.95475]
[1729766298522,0.96197155,2528.9,2528.6,3.95475]
[1729766298753,0.96197155,2528.8,2528.6,3.95475]
[1729766298968,0.96197155,2528.7,2528.6,3.95475]
[1729766299964,0.8968,2529.0,2528.6,3.95475]
[1729766300168,1.44729902,2528.9,2528.6,3.95475]
[1729766300413,0.96235587,2528.8,2528.6,3.95475]
[1729766300587,0.96235587,2528.7,2528.6,3.95475]
[1729766301372,0.37013687,2528.7,2528.6,3.95475]
[1729766303196,0.37013687,2528.7,2528.5,6.14800231]
[1729766303197,0.37013687,2528.7,2528.5,4.83711]
[1729766303533,0.96235587,2528.6,2528.5,3.95491]
[1729766304123,3.14194818,2528.6,2528.1,0.8686]
[1729766304305,0.96235587,2528.5,2528.2,3.95531]
[1729766304504,0.96235587,2528.4,2528.2,3.95531]
[1729766304734,0.96235587,2528.3,2528.2,3.95531]
[1729766305103,0.96235587,2528.3,2528.0,4.88371]
[1729766305291,2.17959231,2528.6,2528.0,4.88371]
[1729766305292,1.45409946,2528.2,2528.0,3.96561]
[1729766305492,0.96235587,2528.1,2528.0,3.96561]
[1729766305730,0.37013687,2528.1,2528.0,3.96561]
[1729766306731,0.96235587,2528.1,2528.0,3.96561]
[1729766306905,0.37013687,2528.1,2528.0,3.96561]
[1729766307796,0.37013687,2528.1,2527.8,3.9659]
[1729766307997,0.96235587,2528.0,2527.8,3.9659]
[1729766308198,0.96235587,2527.9,2527.8,3.9659]
[1729766308435,0.37013687,2527.9,2527.8,3.9659]
[1729766309431,0.37013687,2527.9,2527.8,4.14444778]
[1729766309633,0.37013687,2527.9,2527.8,0.17854778]
[1729766309834,0.62298484,2527.9,2527.8,0.17854778]
[1729766310147,1.21520384,2527.9,2527.8,0.17854778]
[1729766310946,1.21569381,2527.9,2527.8,0.17854778]
[1729766311894,1.21569381,2527.9,2527.8,4.13454778]
[1729766311895,0.96284584,2527.9,2527.8,4.13454778]
[1729766312096,0.9072,2528.6,2527.8,6.36174009]
[1729766312338,0.9072,2528.6,2528.3,3.95522]
[1729766312339,0.96255355,2528.5,2528.3,3.95522]
[1729766312512,3.9543,2528.9,2528.5,3.95491]
[1729766312513,0.933,2528.9,2528.5,3.95491]
[1729766312709,0.96241931,2528.8,2528.5,3.9548]
[1729766312930,0.96241931,2528.7,2528.6,0.17817812]
[1729766313101,0.37016127,2528.7,2528.6,5.44382043]
[1729766313304,0.96241931,2528.7,2528.6,6.34242043]
[1729766313611,0.37016127,2528.7,2528.6,6.35242043]
[1729766314049,0.37016127,2528.7,2528.6,5.04152812]
[1729766314228,0.59214324,2529.1,2529.0,9.73084883]
[1729766314415,1.2711228,2529.1,2529.0,9.73084883]
[1729766314738,1.2711228,2529.1,2529.0,9.90871786]
[1729766314936,2.58201511,2529.1,2529.0,9.90871786]
[1729766315098,5.85700555,2529.1,2529.0,9.90871786]
[1729766315294,5.26486231,2529.1,2529.0,9.90871786]
[1729766316339,6.12796231,2529.1,2529.0,9.90871786]
[1729766319026,0.8631,2529.1,2529.0,9.90871786]
[1729766319237,3.95383,2529.2,2529.0,9.90871786]
[1729766319440,4.93754574,2529.2,2529.0,9.90871786]
[1729766320752,8.89144574,2529.2,2529.0,9.90871786]
[1729766321535,4.93754574,2529.2,2529.0,9.90871786]
[1729766322055,3.9539,2529.2,2529.0,9.90871786]
[1729766322224,9.21873231,2529.2,2529.0,9.90871786]
[1729766322547,5.26479231,2529.2,2529.0,9.90871786]
[1729766323162,5.26486231,2529.1,2529.0,9.90871786]
[1729766323314,6.14446231,2529.1,2529.0,9.90871786]
[1729766323516,7.15429854,2529.1,2529.0,9.90871786]
[1729766325716,5.84340623,2529.1,2529.0,9.90871786]
[1729766325919,7.15429854,2529.1,2529.0,9.90871786]
[1729766326353,7.52435644,2529.1,2529.0,9.90871786]
[1729766327453,6.21346413,2529.1,2529.0,9.90871786]
[1729766328556,1.00983623,2529.1,2529.0,9.90871786]
[1729766328757,0.37002505,2529.1,2529.0,9.90871786]
[1729766330044,3.9539,2529.2,2529.0,9.90871786]
[1729766330789,2.23599231,2529.3,2529.0,9.90871786]
[1729766330999,6.18967231,2529.3,2529.0,9.90871786]
[1729766331195,1.68088668,2529.2,2529.0,9.90871786]
[1729766331353,0.36999437,2529.1,2529.0,9.90871786]
[1729766332690,0.36996941,2529.1,2529.0,9.90871786]
[1729766332895,5.26448231,2529.4,2529.0,9.90871786]
[1729766333194,0.36996131,2529.3,2529.0,9.90871786]
[1729766333499,0.36996131,2529.2,2529.0,9.90871786]
[1729766333658,0.36996131,2529.1,2529.0,9.90871786]
[1729766334079,0.36994922,2529.1,2529.0,9.90871786]
[1729766336477,5.26481231,2529.2,2529.0,9.90871786]
[1729766336677,0.36991138,2529.1,2529.0,9.90871786]
[1729766340533,3.95392,2529.2,2529.0,9.90871786]
[1729766340836,5.26481231,2529.2,2529.0,9.90871786]
[1729766341530,3.95392,2529.2,2529.0,9.90871786]
[1729766341759,9.21874231,2529.2,2529.0,9.90871786]
[1729766341889,2.14743705,2529.1,2529.0,9.90871786]
[1729766342093,5.17953647,2529.1,2529.0,9.90871786]
[1729766343002,1.22556647,2529.1,2529.0,9.90871786]
[1729766345040,4.80967,2529.1,2529.0,9.90871786]
[1729766345244,6.49042603,2529.1,2529.0,9.90871786]
[1729766345401,1.22556372,2529.1,2529.0,9.90871786]
[1729766345806,0.36986372,2529.1,2529.0,9.90871786]
[1729766348726,0.36986004,2529.1,2529.0,9.90871786]
[1729766349127,4.97732828,2529.1,2529.0,9.90871786]
[1729766349345,6.28822059,2529.1,2529.0,9.90871786]
[1729766349508,4.97732828,2529.1,2529.0,9.90871786]
[1729766350311,6.28822059,2529.1,2529.0,9.90871786]
[1729766350514,4.97732828,2529.1,2529.0,9.90871786]
[1729766350825,6.28822059,2529.1,2529.0,9.90871786]
[1729766351037,1.94375828,2529.1,2529.0,9.90871786]
[1729766351214,5.89772828,2529.1,2529.0,9.90871786]
[1729766352012,7.20862059,2529.1,2529.0,9.90871786]
[1729766352433,6.83876055,2529.1,2529.0,9.90871786]
[1729766352712,7.20867951,2529.1,2529.0,9.90871786]
[1729766353142,7.62110468,2529.1,2529.0,9.90871786]
[1729766356321,7.25118572,2529.1,2529.0,9.90871786]
[1729766356521,7.6214693,2529.1,2529.0,9.90871786]
[1729766356728,7.25118572,2529.1,2529.0,9.90871786]
[1729766356942,7.62147777,2529.1,2529.0,9.90871786]
[1729766358960,6.31058546,2529.1,2529.0,9.90871786]
[1729766360154,7.62186988,2529.1,2529.0,9.90871786]
[1729766360456,7.62186988,2529.1,2529.0,8.49379483]
[1729766360821,7.62186988,2529.1,2529.0,8.67132309]
[1729766365536,10.62186988,2529.1,2529.0,8.67132309]
[1729766368272,11.93276219,2529.1,2529.0,8.67132309]
[1729766368471,11.93276219,2529.1,2529.0,0.77668834]
[1729766368472,11.93247308,2529.1,2529.0,0.77668834]
[1729766368631,11.93247308,2529.1,2529.0,0.59916008]
[1729766368832,10.62158077,2529.1,2529.0,0.59916008]
[1729766369366,6.70118077,2529.1,2529.0,0.59916008]
[1729766369579,6.70118077,2529.1,2529.0,0.77699123]
[1729766371465,4.73679022,2529.1,2529.0,0.77699123]
[1729766371675,0.37039505,2529.1,2529.0,0.77699123]
[1729766371830,0.33209081,2529.1,2529.0,0.77699123]
[1729766372032,3.95384,2529.2,2529.0,0.77699123]
[1729766373175,5.26473231,2529.2,2529.0,0.77699123]
[1729766373944,3.95384,2529.2,2529.0,0.77699123]
[1729766374271,5.26457231,2529.3,2529.0,0.77699123]
[1729766374459,5.26457231,2529.3,2529.1,0.9345]
[1729766374770,1.31089231,2529.3,2529.1,1.11237425]
[1729766374929,3.95381,2529.2,2529.1,1.11237425]
[1729766379463,3.95355,2529.4,2529.1,1.11237425]
[1729766379971,5.26444231,2529.4,2529.1,1.11237425]
[1729766380346,3.95355,2529.4,2529.1,1.11237425]
[1729766380744,3.95366,2529.3,2529.1,1.11237425]
[1729766380948,3.95381,2529.2,2529.1,1.11237425]
[1729766381739,3.95381,2529.2,2529.1,0.17787425]
[1729766381740,4.87564623,2529.2,2529.1,0.17787425]
[1729766382062,4.87564623,2529.2,2529.0,0.59916008]
[1729766382063,3.95397,2529.1,2529.0,0.59916008]
[1729766382270,5.26486231,2529.1,2529.0,0.59916008]
[1729766383979,8.63506835,2529.1,2529.0,0.59916008]
[1729766385384,3.95473,2528.7,2528.4,0.8869]
[1729766385596,0.37020604,2528.6,2528.4,0.8869]
[1729766385752,0.37020604,2528.5,2528.4,0.8869]
[1729766386282,4.32511604,2528.5,2528.4,0.8869]
[1729766386483,0.37020604,2528.5,2528.4,0.8869]
[1729766387804,9.22025231,2528.7,2528.4,0.8869]
[1729766388104,5.34107314,2528.6,2528.4,0.8869]
[1729766388405,0.37019791,2528.5,2528.4,0.8869]
[1729766391876,0.37015388,2528.5,2528.4,0.8869]
[1729766392310,0.37015415,2528.5,2528.4,0.8869]
[1729766393112,0.9891764,2528.5,2528.4,0.8869]
[1729766394272,2.11173279,2528.5,2528.4,0.8869]
[1729766395818,5.69648864,2528.5,2528.2,10.9564101]
[1729766396125,0.37014607,2528.4,2528.2,10.9564101]
[1729766396433,0.37014607,2528.3,2528.2,10.9564101]
[1729766399523,0.37014607,2528.3,2528.2,11.13496765]
[1729766400500,5.26564032,2528.3,2528.2,11.13496765]
[1729766400721,5.26564032,2528.3,2528.2,10.27956765]
[1729766401136,1.31042032,2528.3,2528.2,10.27956765]
[1729766401432,5.26564032,2528.3,2528.2,10.27956765]
[1729766402542,4.89549425,2528.3,2528.2,10.27956765]
[1729766403830,5.26558434,2528.3,2528.2,10.27956765]
[1729766404342,6.57647665,2528.3,2528.2,10.27956765]
[1729766404542,6.98879672,2528.3,2528.2,10.27956765]
[1729766404745,7.93289672,2528.3,2528.2,10.27956765]
[1729766404894,7.93289672,2528.3,2528.2,10.1010101]
[1729766405094,7.56280663,2528.3,2528.2,10.2794884]
[1729766406108,10.56280663,2528.3,2528.2,10.2794884]
[1729766410129,10.93279229,2528.3,2528.2,10.2794884]
[1729766410501,10.52047222,2528.3,2528.2,10.2794884]
[1729766411236,10.15048656,2528.3,2528.2,10.2794884]
[1729766412120,7.89549425,2528.3,2528.2,10.2794884]
[1729766412325,7.89549425,2528.3,2528.2,11.2797884]
[1729766412326,0.369838,2528.3,2528.2,11.2797884]
[1729766413105,0.369838,2528.3,2528.2,11.1013101]
[1729766413637,0.36968803,2528.3,2528.2,11.27429746]
[1729766415019,4.32490803,2528.3,2528.2,11.27429746]
[1729766415343,5.15290583,2528.3,2528.2,10.27399746]
[1729766415546,5.77201658,2528.3,2528.2,10.27399746]
[1729766416420,1.81679658,2528.3,2528.2,10.27399746]
[1729766416623,0.98879878,2528.3,2528.2,11.24109746]
[1729766418556,4.94401878,2528.3,2528.2,11.24109746]
[1729766418856,4.94401878,2528.3,2528.2,10.27399746]
[1729766419531,0.98879878,2528.3,2528.2,10.27399746]
[1729766419966,4.94401878,2528.3,2528.2,10.27399746]
[1729766420734,4.94404113,2528.3,2528.2,10.27399746]
[1729766420938,0.98882113,2528.3,2528.2,10.27399746]
[1729766422478,4.94404113,2528.3,2528.2,10.27399746]
[1729766422645,5.83395224,2528.3,2528.2,10.27399746]
[1729766428387,5.83446608,2528.3,2528.2,10.27399746]
[1729766430187,6.75066608,2528.3,2528.2,10.27399746]
[1729766430985,6.13155533,2528.3,2528.2,10.27399746]
[1729766433782,12.47577552,2528.3,2528.2,10.27399746]
[1729766434129,12.47577552,2528.3,2528.2,10.1010101]
[1729766434401,12.47577552,2528.3,2528.2,10.31462077]
[1729766436202,12.47927552,2528.3,2528.2,10.31462077]
[1729766436419,10.86022076,2528.3,2528.2,10.31462077]
[1729766437773,10.86022076,2528.3,2528.2,9.0770644]
[1729766437998,10.48999654,2528.3,2528.2,9.0770644]
[1729766438319,11.80278883,2528.3,2528.2,9.0770644]
[1729766439314,10.48999654,2528.3,2528.2,9.0770644]
[1729766440638,12.35278883,2528.3,2528.2,9.0770644]
[1729766441824,12.35278883,2528.3,2528.2,8.86345373]
[1729766442136,12.35278883,2528.3,2528.2,9.07743244]
[1729766445406,12.35278883,2528.3,2528.2,2.57702291]
[1729766445603,3.95647,2527.5,2527.4,11.0579101]
[1729766445941,5.26926229,2527.5,2527.4,11.26550687]
[1729766446643,6.29127352,2527.5,2527.4,11.26550687]
[1729766446827,9.70349891,2527.5,2527.4,10.30860687]
[1729766447552,0.9945,2527.7,2527.4,10.30860687]
[1729766447553,3.95607,2527.8,2527.5,0.9562]
[1729766447853,1.31279229,2527.9,2527.6,0.20740908]
[1729766448016,1.31279229,2527.9,2527.7,0.9562]
[1729766448348,1.31279229,2527.9,2527.8,0.20722142]
[1729766448349,3.95587,2527.9,2527.8,0.20722142]
[1729766448557,5.26866229,2527.9,2527.8,0.20722142]
[1729766449051,1.31279229,2528.0,2527.8,0.20722142]
[1729766449253,0.41238268,2528.2,2527.9,0.9879]
[1729766449454,3.95492,2528.5,2528.0,0.9879]
[1729766449660,4.57376484,2528.7,2528.2,0.01]
[1729766449816,10.42989284,2528.7,2528.3,0.9879]
[1729766450158,3.95476,2528.6,2528.4,0.2070917]
[1729766450370,0.61915484,2528.7,2528.5,0.9879]
[1729766450520,0.61915484,2528.7,2528.6,0.9979]
[1729766450853,0.61915484,2528.7,2528.6,5.15955416]
[1729766451054,0.61915484,2528.7,2528.6,1.20480416]
[1729766452118,3.95407,2529.1,2528.6,1.20480416]
[1729766452119,3.95416,2529.0,2528.6,1.20480416]
[1729766452342,3.95429,2528.9,2528.6,1.20480416]
[1729766452720,3.95429,2528.9,2528.6,1.19480416]
[1729766452921,3.95456,2528.8,2528.6,1.19480416]